bitfinex-derivatives/quotes_BNBF0:USTF0_20250608
["timestamp","ask_amount","ask_price","bid_price","bid_amount"]
[1749390616402,0.987,651.68,650.76,1.52346967]
[1749390617202,0.987,651.68,650.79,1.52346967]
[1749390617402,0.987,651.68,650.8,1.52346967]
[1749390617902,0.987,651.68,650.67,0.30737547]
[1749390617903,0.987,651.68,650.88,1.52346967]
[1749390618804,0.987,651.68,650.73,2.28694497]
[1749390618805,0.987,651.68,650.9,1.52346967]
[1749390619307,0.987,651.68,650.91,1.52346967]
[1749390620808,0.987,651.68,650.9,1.52346967]
[1749390621205,0.987,651.68,650.91,1.52346967]
[1749390623206,0.987,651.68,650.9,1.52346967]
[1749390623507,0.987,651.68,650.89,1.52346967]
[1749390623708,0.987,651.68,650.85,1.52346967]
[1749390623907,0.987,651.68,650.77,1.52346967]
[1749390624110,0.987,651.68,650.79,1.52346967]
[1749390624507,0.987,651.68,650.78,1.52346967]
[1749390624709,0.987,651.68,650.77,1.52346967]
[1749390625112,3.83951609,651.68,650.77,1.52346967]
[1749390625307,1.74447043,651.67,650.77,1.52346967]
[1749390625509,0.53222636,651.67,650.77,1.52346967]
[1749390625814,0.987,651.68,650.77,1.52346967]
[1749390626008,1.51922628,651.68,650.77,1.52346967]
[1749390626208,0.987,651.68,650.77,1.52346967]
[1749390626412,2.73152905,651.68,650.77,1.52346967]
[1749390626612,0.987,651.68,650.77,1.52346967]
[1749390626910,0.987,651.68,650.78,1.52346967]
[1749390627409,0.987,651.68,650.8,1.52346967]
[1749390627610,3.30534873,651.68,650.8,1.52346967]
[1749390627908,1.74351733,651.67,650.8,1.52346967]
[1749390628112,0.5323393,651.67,650.8,1.52346967]
[1749390628314,1.74346501,651.67,650.8,1.52346967]
[1749390628514,2.19817804,651.68,650.8,1.52346967]
[1749390628810,0.53228697,651.67,650.8,1.52346967]
[1749390629108,2.62624269,651.68,650.8,1.52346967]
[1749390629309,0.53228766,651.67,650.8,1.52346967]
[1749390629909,0.53207839,651.67,650.8,1.52346967]
[1749390630110,0.53205903,651.67,650.8,1.52346967]
[1749390630312,0.53205833,651.67,650.81,1.52346967]
[1749390630511,1.74293183,651.67,650.82,1.52346967]
[1749390630714,2.88758776,651.67,650.82,1.52346967]
[1749390631014,0.53205833,651.66,650.82,1.52346967]
[1749390631314,0.53205833,651.66,650.81,1.52346967]
[1749390631513,2.35552943,651.67,650.81,1.52346967]
[1749390631710,1.14465593,651.67,650.81,1.52346967]
[1749390632011,1.67676306,651.67,650.81,1.52346967]
[1749390632310,1.67675023,651.67,650.81,1.52346967]
[1749390632520,2.88695411,651.67,650.81,1.52346967]
[1749390632715,1.74229818,651.66,650.81,1.52346967]
[1749390632912,0.5320943,651.66,650.82,1.52346967]
[1749390633116,1.14465593,651.67,650.82,1.52346967]
[1749390633410,0.987,651.68,650.82,1.52346967]
[1749390633411,2.13165593,651.68,650.82,1.52346967]
[1749390633716,1.14465593,651.66,650.84,1.52346967]
[1749390634017,2.35500593,651.66,650.85,1.52346967]
[1749390634212,1.14465593,651.66,650.85,1.52346967]
[1749390634618,1.67674239,651.66,650.85,1.52346967]
[1749390635018,2.8871292,651.66,650.85,1.52346967]
[1749390635215,1.14465593,651.65,650.86,1.52346967]
[1749390635416,1.14465593,651.66,650.86,1.52346967]
[1749390635925,2.35504017,651.66,650.86,1.52346967]
[1749390636114,1.14465593,651.66,650.86,1.52346967]
[1749390636314,1.14465593,651.65,650.86,1.52346967]
[1749390637922,1.14465593,651.65,650.88,1.52346967]
[1749390638318,1.14465593,651.64,650.88,1.52346967]
[1749390639024,1.14465593,651.63,650.87,1.52346967]
[1749390639423,1.14465593,651.64,650.85,1.52346967]
[1749390639619,1.14465593,651.62,650.84,1.52346967]
[1749390640422,1.14465593,651.6,650.85,1.52346967]
[1749390641924,1.14465593,651.61,650.85,1.52346967]
[1749390643221,1.14465593,651.61,650.84,1.52346967]
[1749390645224,1.14465593,651.61,650.83,1.52346967]
[1749390645426,1.14465593,651.62,650.83,1.52346967]
[1749390648733,1.14465593,651.62,650.82,1.52346967]
[1749390649333,1.14465593,651.62,650.83,1.52346967]
[1749390649733,1.14465593,651.61,650.82,1.52346967]
[1749390650034,1.14465593,651.61,650.81,1.52346967]
[1749390650229,1.14465593,651.59,650.79,1.52346967]
[1749390650534,1.14465593,651.6,650.77,1.52346967]
[1749390650729,1.14465593,651.61,650.76,1.52346967]
[1749390650929,1.14465593,651.6,650.76,1.52346967]
[1749390651232,1.14465593,651.61,650.76,1.52346967]
[1749390651828,1.14465593,651.61,650.75,1.52346967]
[1749390652029,2.35543306,651.61,650.75,1.52346967]
[1749390652230,0.53227962,651.6,650.75,1.52346967]
[1749390652434,1.14465593,651.58,650.72,1.52346967]
[1749390652934,1.14465593,651.57,650.72,1.52346967]
[1749390653134,1.14465593,651.58,650.72,1.52346967]
[1749390653335,1.14465593,651.57,650.71,1.52346967]
[1749390654332,1.14465593,651.58,650.72,1.52346967]
[1749390656439,2.88736053,651.58,650.72,1.52346967]
[1749390656633,1.7427046,651.57,650.72,1.52346967]
[1749390656835,0.53202634,651.57,650.72,1.52346967]
[1749390657033,1.14465593,651.58,650.72,1.52346967]
[1749390657338,1.14465593,651.57,650.71,1.52346967]
[1749390657535,1.14465593,651.57,650.7,1.52346967]
[1749390657738,1.14465593,651.57,650.71,1.52346967]
[1749390658138,1.14465593,651.57,650.7,1.52346967]
[1749390658334,1.14465593,651.57,650.71,1.52346967]
[1749390658735,1.14465593,651.58,650.72,1.52346967]
[1749390658937,1.14465593,651.55,650.69,1.52346967]
[1749390659337,1.14465593,651.53,650.68,1.52346967]
[1749390659542,1.14465593,651.53,650.67,1.52346967]
[1749390659738,1.14465593,651.52,650.67,1.52346967]
[1749390659946,1.14465593,651.51,650.68,1.52346967]
[1749390661245,1.14465593,651.49,650.66,1.52346967]
[1749390661439,1.14465593,651.47,650.64,1.52346967]
[1749390661641,1.14465593,651.46,650.63,1.52346967]
[1749390661840,1.14465593,651.46,650.62,1.52346967]
[1749390662039,1.14465593,651.47,650.62,1.52346967]
[1749390662461,1.14465593,651.43,650.61,1.52346967]
[1749390662644,1.14465593,651.43,650.59,1.52346967]
[1749390662941,1.14465593,651.41,650.57,1.52346967]
[1749390663141,1.14465593,651.4,650.56,1.52346967]
[1749390663345,1.14465593,651.38,650.54,1.52346967]
[1749390663542,1.14465593,651.39,650.54,1.52346967]
[1749390663745,1.287,651.37,650.54,1.52346967]
[1749390663943,1.14465593,651.36,650.55,1.52346967]
[1749390664243,1.14465593,651.35,650.54,1.52346967]
[1749390664748,1.14465593,651.33,650.46,1.52346967]
[1749390665242,1.14465593,651.3,650.44,1.52346967]
[1749390665645,1.14465593,651.3,650.42,1.52346967]
[1749390666043,1.14465593,651.3,650.41,1.52346967]
[1749390666242,1.14465593,651.3,650.42,1.52346967]
[1749390666543,1.14465593,651.32,650.38,1.52346967]
[1749390666745,1.67732147,651.33,650.36,1.52346967]
[1749390666950,1.14465593,651.33,650.36,1.52346967]
[1749390667146,1.14465593,651.34,650.35,1.52346967]
[1749390667350,1.14465593,651.33,650.35,1.52346967]
[1749390667547,1.14465593,651.33,650.21,2.28694497]
[1749390667548,1.67664871,651.33,650.32,1.52346967]
[1749390667748,1.14465593,651.33,650.32,1.52346967]
[1749390668252,2.88859243,651.33,650.33,1.52346967]
[1749390668548,0.53199299,651.32,650.31,1.52346967]
[1749390668749,1.14465593,651.33,650.31,1.52346967]
[1749390669652,1.14465593,651.33,650.3,1.52346967]
[1749390670053,1.67552574,651.33,650.3,1.52346967]
[1749390670252,1.14465593,651.33,650.31,1.52346967]
[1749390670754,1.14465593,651.31,650.28,1.52346967]
[1749390671151,1.14465593,651.31,650.29,1.52346967]
[1749390671351,1.14465593,651.3,650.29,1.52346967]
[1749390671550,1.14465593,651.3,650.27,1.52346967]
[1749390672153,1.14465593,651.29,650.27,1.52346967]
[1749390672352,1.14465593,651.27,650.27,1.52346967]
[1749390672754,1.14465593,651.26,650.24,1.52346967]
[1749390673153,1.14465593,651.26,650.25,1.52346967]
[1749390673559,1.14465593,651.26,650.23,1.52346967]
[1749390673758,1.14465593,651.26,650.24,1.52346967]
[1749390674159,1.14465593,651.25,650.25,1.52346967]
[1749390674453,1.14465593,651.26,650.23,1.52346967]
[1749390675255,1.14465593,651.26,650.24,1.52346967]
[1749390676358,1.14465593,651.25,650.24,1.52346967]
[1749390676556,1.14465593,651.26,650.23,1.52346967]
[1749390676755,0.53116273,651.3,650.09,1.52346967]
[1749390676957,1.2048289,651.35,650.09,1.52346967]
[1749390677253,1.2048289,651.35,649.87,0.26745468]
[1749390677254,1.51188347,651.35,650.1,1.52346967]
[1749390677458,2.04303474,651.35,650.1,1.52346967]
[1749390677658,2.84544154,651.34,650.09,1.52346967]
[1749390677855,0.53016967,651.33,650.09,1.52346967]
[1749390678355,0.53016563,651.33,650.11,1.52346967]
[1749390678558,1.2048289,651.35,650.11,1.52346967]
[1749390678757,2.40933617,651.35,650.11,1.52346967]
[1749390678954,2.84132757,651.34,650.11,1.52346967]
[1749390679161,0.53015381,651.33,650.11,1.52346967]
[1749390679460,0.5301497,651.33,650.11,1.52346967]
[1749390679660,0.5301497,651.33,650.1,1.52346967]
[1749390680062,2.84132916,651.34,650.1,1.52346967]
[1749390680258,1.2048289,651.35,650.11,1.52346967]
[1749390680466,1.2048289,651.35,650.1,1.52346967]
[1749390680761,1.73516106,651.35,650.11,1.52346967]
[1749390680962,2.40974247,651.35,650.11,1.52346967]
[1749390681164,0.53033263,651.34,650.11,1.52346967]
[1749390681466,1.2048289,651.35,650.11,1.52346967]
[1749390681668,4.04699043,651.35,650.11,1.52346967]
[1749390681865,2.84156862,651.34,650.1,1.52346967]
[1749390682070,1.63656891,651.33,650.11,1.52346967]
[1749390682265,2.84131463,651.34,650.11,1.52346967]
[1749390682466,1.10665923,651.33,650.12,1.52346967]
[1749390682662,1.63661328,651.34,650.11,1.52346967]
[1749390683174,0.52995405,651.34,650.12,1.52346967]
[1749390683365,1.20474867,651.34,650.12,1.52346967]
[1749390683565,1.2048289,651.35,650.11,1.52346967]
[1749390684364,2.93970962,651.35,650.11,1.52346967]
[1749390684666,2.84204594,651.34,650.11,1.52346967]
[1749390684869,2.84202616,651.33,650.13,1.52346967]
[1749390685065,2.84202616,651.32,650.13,1.52346967]
[1749390685264,2.84231074,651.31,650.13,1.52346967]
[1749390685465,2.84228825,651.3,650.14,1.52346967]
[1749390685671,2.84226595,651.29,650.14,1.52346967]
[1749390685872,2.31222778,651.28,650.14,1.52346967]
[1749390686071,1.20479233,651.27,650.14,1.52346967]
[1749390686271,1.63746112,651.34,650.14,1.52346967]
[1749390686568,0.5300308,651.34,650.3,1.52346967]
[1749390686767,1.73476176,651.35,650.34,1.52346967]
[1749390686975,2.94042191,651.35,650.33,1.52346967]
[1749390687168,2.84354485,651.34,650.33,1.52346967]
[1749390687473,2.31357594,651.33,650.33,1.52346967]
[1749390687673,1.2048289,651.35,650.34,1.52346967]
[1749390688473,1.73477523,651.35,650.34,1.52346967]
[1749390688674,4.04818985,651.35,650.34,1.52346967]
[1749390688871,1.2055692,651.34,650.34,1.52346967]
[1749390689171,1.2048289,651.35,650.35,1.52346967]
[1749390689772,3.51791546,651.35,650.35,1.52346967]
[1749390690075,2.31307804,651.34,650.35,1.52346967]
[1749390690676,1.2055635,651.34,650.35,1.52346967]
[1749390690873,1.10734394,651.34,650.35,1.52346967]
[1749390691178,1.2048289,651.35,650.35,1.52346967]
[1749390691677,4.0477992,651.35,650.35,1.52346967]
[1749390691877,2.31291874,651.34,650.35,1.52346967]
[1749390692374,1.10743302,651.33,650.35,1.52346967]
[1749390692573,2.31493817,651.34,650.35,1.52346967]
[1749390692777,1.2048289,651.35,650.36,1.52346967]
[1749390693074,1.2048289,651.35,650.35,1.52346967]
[1749390693378,4.04991182,651.35,650.36,1.52346967]
[1749390693573,2.31507529,651.34,650.36,1.52346967]
[1749390693875,1.10743793,651.33,650.35,1.52346967]
[1749390694075,2.31507612,651.34,650.35,1.52346967]
[1749390694280,2.31506486,651.33,650.35,1.52346967]
[1749390694479,1.10742758,651.32,650.35,1.52346967]
[1749390694683,1.20765185,651.34,650.35,1.52346967]
[1749390694978,1.20768511,651.34,650.33,1.52346967]
[1749390695177,4.05013449,651.35,650.34,1.52346967]
[1749390695381,2.84530559,651.34,650.34,1.52346967]
[1749390695676,0.53015904,651.33,650.34,1.52346967]
[1749390695979,1.2048289,651.35,650.34,1.52346967]
[1749390696182,2.31229045,651.35,650.34,1.52346967]
[1749390696377,2.31229045,651.35,650.39,1.52346967]
[1749390696378,3.45696781,651.34,650.39,1.52346967]
[1749390696681,1.63697492,651.33,650.39,1.52346967]
[1749390696879,0.53019638,651.33,650.39,1.52346967]
[1749390697078,2.84471095,651.33,650.39,1.52346967]
[1749390697291,0.53019638,651.32,650.39,1.52346967]
[1749390697484,0.53018617,651.32,650.25,1.52346967]
[1749390697681,0.53022612,651.33,650.25,1.52346967]
[1749390697879,3.98783082,651.33,650.24,1.52346967]
[1749390698088,2.84466119,651.32,650.24,1.52346967]
[1749390698286,1.10686201,651.31,650.24,1.52346967]
[1749390698485,0.53024023,651.31,650.24,1.52346967]
[1749390698683,1.14317835,651.32,650.24,1.52346967]
[1749390698885,3.98964877,651.32,650.24,1.52346967]
[1749390699181,2.84574095,651.31,650.24,1.52346967]
[1749390699384,1.10864781,651.3,650.24,1.52346967]
[1749390699586,2.31540456,651.3,650.26,1.52346967]
[1749390699885,0.52993563,651.29,650.26,1.52346967]
[1749390700182,1.14317835,651.33,650.26,1.52346967]
[1749390700382,1.67311312,651.33,650.26,1.52346967]
[1749390700590,3.98840654,651.33,650.27,1.52346967]
[1749390700786,2.84522819,651.32,650.26,1.52346967]
[1749390700987,2.84597006,651.31,650.26,1.52346967]
[1749390701184,1.14317835,651.33,650.27,1.52346967]
[1749390701382,0.854,651.3,650.27,1.52346967]
[1749390702288,0.854,651.3,650.28,1.52346967]
[1749390702487,0.854,651.3,650.27,1.52346967]
[1749390702683,0.854,651.3,650.28,1.52346967]
[1749390702883,3.17012186,651.3,650.28,1.52346967]
[1749390703184,2.31612156,651.29,650.28,1.52346967]
[1749390703382,1.10735765,651.28,650.28,1.52346967]
[1749390703684,0.854,651.3,650.29,1.52346967]
[1749390703887,3.69680195,651.3,650.29,1.52346967]
[1749390704082,2.84280195,651.29,650.29,1.52346967]
[1749390704285,1.6370328,651.28,650.29,1.52346967]
[1749390704486,0.52967379,651.28,650.3,1.52346967]
[1749390704688,0.52965722,651.28,650.3,1.52346967]
[1749390704887,1.10735901,651.29,650.3,1.52346967]
[1749390705088,0.854,651.3,650.3,1.52346967]
[1749390705488,3.69749659,651.3,650.3,1.52346967]
[1749390705685,2.84349659,651.29,650.31,1.52346967]
[1749390705886,1.20614121,651.28,650.31,1.52346967]
[1749390706089,2.3138394,651.28,650.31,1.52346967]
[1749390706289,1.10741625,651.27,650.31,1.52346967]
[1749390706586,1.38367918,651.3,650.31,1.52346967]
[1749390706789,2.06013982,651.3,650.31,1.52346967]
[1749390707088,2.84323385,651.29,650.31,1.52346967]
[1749390707288,1.14317835,651.26,650.41,1.52346967]
[1749390707884,3.98711432,651.26,650.41,1.52346967]
[1749390708085,3.98711432,651.26,649.87,0.26745468]
[1749390708086,2.31474955,651.25,650.42,1.52346967]
[1749390708283,1.20684058,651.24,650.42,1.52346967]
[1749390708486,1.14317835,651.25,650.42,1.52346967]
[1749390708786,1.14317835,651.26,650.41,1.52346967]
[1749390709187,1.14317835,651.24,650.45,1.52346967]
[1749390710185,1.14317835,651.23,650.47,1.52346967]
[1749390711290,1.14317835,651.21,650.46,1.52346967]
[1749390711590,0.854,651.3,649.87,0.26745468]
[1749390711591,1.14317835,651.23,650.48,1.52346967]
[1749390712194,1.14317835,651.22,650.49,1.52346967]
[1749390713193,1.14317835,651.21,650.49,1.52346967]
[1749390713691,1.14317835,651.21,650.5,1.52346967]
[1749390713894,1.14317835,651.21,650.49,1.52346967]
[1749390714090,1.14317835,651.21,650.5,1.52346967]
[1749390714392,1.14317835,651.18,650.45,1.52346967]
[1749390714694,1.14317835,651.15,650.43,1.52346967]
[1749390714894,1.14317835,651.15,650.42,1.52346967]
[1749390715095,1.14317835,651.15,650.41,1.52346967]
[1749390715492,1.14317835,651.14,650.41,1.52346967]
[1749390715992,1.056,651.13,650.4,1.52346967]
[1749390716193,1.056,651.13,650.41,1.52346967]
[1749390716194,2.19917835,651.13,650.41,1.52346967]
[1749390716393,1.14317835,651.12,650.42,1.52346967]
[1749390716693,2.19917835,651.13,650.42,1.52346967]
[1749390717398,1.14317835,651.11,650.43,1.52346967]
[1749390718099,1.14317835,651.1,650.44,1.52346967]
[1749390718893,1.14317835,651.1,650.45,1.52346967]
[1749390719194,1.056,651.13,650.46,1.52346967]
[1749390719195,1.14317835,651.08,650.46,1.52346967]
[1749390719698,1.14317835,651.09,650.46,1.52346967]
[1749390721300,0.5321755,651.09,650.41,1.52346967]
[1749390721601,1.2116103,651.11,650.41,1.52346967]
[1749390721797,1.68120405,651.11,650.41,1.52346967]
[1749390722000,1.14902753,651.11,650.41,1.52346967]
[1749390722198,2.89281134,651.11,650.41,1.52346967]
[1749390722396,1.74379073,651.1,650.41,1.52346967]
[1749390722600,1.14902753,651.08,650.39,1.52346967]
[1749390722896,1.14902753,651.05,650.36,1.52346967]
[1749390723195,1.14902753,650.97,650.31,1.52346967]
[1749390723398,1.14902753,650.96,650.3,1.52346967]
[1749390723603,1.14902753,650.93,650.28,1.52346967]
[1749390723998,1.14902753,650.91,650.26,1.52346967]
[1749390724498,1.14902753,650.92,650.25,1.52346967]
[1749390724902,1.14902753,650.92,650.23,1.52346967]
[1749390725099,1.14902753,650.84,650.04,2.28694497]
[1749390725299,2.29152058,651.09,649.34,5.38520071]
[1749390725300,1.14902753,650.81,650.01,2.28694497]
[1749390725500,1.04129357,650.8,650.0,2.28694497]
[1749390725705,2.25200913,650.84,650.0,2.28694497]
[1749390725901,1.57284904,650.83,649.99,2.28694497]
[1749390726208,1.04129357,650.82,649.99,2.28694497]
[1749390726409,1.04129357,650.82,649.97,2.28694497]
[1749390726601,1.04129357,650.85,649.97,2.28694497]
[1749390726802,1.04129357,650.84,649.97,2.28694497]
[1749390727003,1.04129357,650.83,649.97,2.28694497]
[1749390727207,1.04129357,650.85,649.97,2.28694497]
[1749390727502,1.04129357,650.85,649.96,2.28694497]
[1749390727802,1.04129357,650.86,649.96,2.28694497]
[1749390728401,1.04129357,650.86,649.95,2.28694497]
[1749390728604,1.04129357,650.88,649.95,2.28694497]
[1749390729308,1.14902753,650.89,649.95,2.28694497]
[1749390729604,1.14902753,650.89,649.93,2.28694497]
[1749390730108,1.14902753,650.85,649.89,2.28694497]
[1749390730304,1.14902753,650.8,649.8,2.28694497]
[1749390730606,1.14902753,650.82,649.81,2.28694497]
[1749390730805,1.14902753,650.81,649.81,2.28694497]
[1749390731006,3.29730026,650.81,649.81,2.28694497]
[1749390731202,1.04129357,650.8,649.82,2.28694497]
[1749390731405,1.14902753,650.79,649.76,2.28694497]
[1749390731807,3.29727087,650.79,649.76,2.28694497]
[1749390732003,2.14824334,650.78,649.76,2.28694497]
[1749390732207,3.29229437,650.77,649.79,2.28694497]
[1749390732504,1.04129357,650.76,649.77,2.28694497]
[1749390732704,2.29988799,650.77,649.77,2.28694497]
[1749390733003,1.04129357,650.76,649.77,2.28694497]
[1749390733405,2.29988594,650.77,649.75,2.28694497]
[1749390733614,1.04129357,650.76,649.74,2.28694497]
[1749390733806,1.04129357,650.76,649.75,2.28694497]
[1749390734009,1.10216682,650.77,649.74,2.28694497]
[1749390734211,1.14902753,650.78,649.74,2.28694497]
[1749390734511,1.14902753,650.81,649.58,2.28694497]
[1749390734812,1.14902753,650.81,649.59,0.30788651]
[1749390734813,1.04129357,650.8,649.59,0.30788651]
[1749390735209,2.1903211,650.8,649.59,0.30788651]
[1749390735407,3.8650372,650.79,649.59,0.30788651]
[1749390735608,3.33719435,650.78,649.59,0.30788651]
[1749390735807,2.66947593,650.77,649.59,0.30788651]
[1749390736111,2.23596104,650.76,649.59,0.30788651]
[1749390736311,3.3371924,650.75,649.59,0.30788651]
[1749390736522,3.33578577,650.74,649.59,0.30788651]
[1749390736711,2.14252153,650.73,649.59,0.30788651]
[1749390736911,2.14252153,650.72,649.59,0.30788651]
[1749390737212,1.14902753,650.81,649.59,0.30788651]
[1749390737213,2.14252153,650.71,649.59,0.30788651]
[1749390737409,1.04129357,650.7,649.59,0.30788651]
[1749390737709,2.81642064,650.81,649.59,0.30788651]
[1749390737911,1.14902753,650.82,649.59,0.30788651]
[1749390737912,4.16502004,650.8,649.59,0.30788651]
[1749390738114,2.2342174,650.79,649.59,0.30788651]
[1749390738314,1.04129357,650.78,649.59,0.30788651]
[1749390738513,0.30731407,650.8,649.59,0.30788651]
[1749390738713,1.87458274,650.8,649.59,0.30788651]
[1749390738910,1.04129357,650.79,649.59,0.30788651]
[1749390739111,0.30731407,650.8,649.59,0.30788651]
[1749390739608,1.4563416,650.8,649.59,2.59483148]
[1749390739813,1.14902753,650.79,649.62,2.28694497]
[1749390740013,0.30731407,650.8,649.59,2.59483148]
[1749390740209,2.44602598,650.8,649.59,2.59483148]
[1749390740414,2.13874089,650.79,649.6,2.28694497]
[1749390740715,2.1387359,650.78,649.63,2.28694497]
[1749390740910,1.04129357,650.77,649.63,2.28694497]
[1749390741110,0.30731407,650.8,649.63,2.28694497]
[1749390741512,0.30731407,650.8,649.64,2.28694497]
[1749390741708,0.30731407,650.8,649.68,2.28694497]
[1749390741908,0.30731407,650.8,649.69,2.28694497]
[1749390742514,0.30731407,650.8,649.68,2.28694497]
[1749390742715,0.30731407,650.8,649.69,2.28694497]
[1749390743211,0.30731407,650.8,649.66,2.28694497]
[1749390743411,0.30731407,650.8,649.68,2.28694497]
[1749390743613,0.30731407,650.8,649.7,2.28694497]
[1749390743812,0.30731407,650.8,649.69,2.28694497]
[1749390744014,0.30731407,650.8,649.7,2.28694497]
[1749390744213,0.30731407,650.8,649.71,2.28694497]
[1749390744410,0.30731407,650.8,649.59,0.30788651]
[1749390744411,0.30731407,650.8,649.7,2.28694497]
[1749390745413,0.30731407,650.8,649.74,2.28694497]
[1749390745612,0.30731407,650.8,649.75,2.28694497]
[1749390745811,0.30731407,650.8,649.74,2.28694497]
[1749390746312,0.30731407,650.8,649.75,2.28694497]
[1749390747309,0.30731407,650.8,649.74,2.28694497]
[1749390747509,0.30731407,650.8,649.75,2.28694497]
[1749390747813,0.30731407,650.8,649.74,2.28694497]
[1749390748514,0.30731407,650.8,649.75,2.28694497]
[1749390749115,0.30731407,650.8,649.77,2.28694497]
[1749390749717,0.30731407,650.8,649.78,2.28694497]
[1749390750013,0.30731407,650.8,649.77,2.28694497]
[1749390750413,0.981,650.79,649.78,2.28694497]
[1749390751617,0.981,650.79,649.81,2.28694497]
[1749390751913,0.981,650.79,649.78,2.28694497]
[1749390752418,0.981,650.79,649.76,2.28694497]
[1749390752617,0.981,650.79,649.78,2.28694497]
[1749390753217,0.981,650.79,649.79,2.28694497]
[1749390753613,0.981,650.79,649.8,2.28694497]
[1749390754518,0.981,650.79,649.81,2.28694497]
[1749390755017,0.981,650.79,649.82,2.28694497]
[1749390755515,0.981,650.79,649.83,2.28694497]
[1749390755919,0.981,650.79,649.81,2.28694497]
[1749390756514,0.981,650.79,649.82,2.28694497]
[1749390758414,0.981,650.79,649.83,2.28694497]
[1749390760417,0.981,650.79,649.84,2.28694497]
[1749390761416,0.981,650.79,649.85,2.28694497]
[1749390761716,0.981,650.79,649.86,2.28694497]
[1749390762423,0.981,650.79,649.92,2.28694497]
[1749390763820,0.981,650.79,649.78,2.28694497]
[1749390764020,0.981,650.79,649.73,2.28694497]
[1749390764219,0.981,650.79,649.74,2.28694497]
[1749390764523,0.981,650.79,649.75,2.28694497]
[1749390764725,0.981,650.79,649.74,2.28694497]
[1749390765121,0.981,650.79,649.73,2.59476514]
[1749390765323,0.981,650.79,649.77,2.28694497]
[1749390765821,0.981,650.79,649.78,2.28694497]
[1749390766424,0.981,650.79,649.94,1.52510566]
[1749390766621,0.981,650.79,649.95,1.52510566]
[1749390767322,0.981,650.79,649.96,1.52510566]
[1749390768626,0.981,650.79,650.01,1.52510566]
[1749390769023,0.981,650.79,650.02,1.52510566]
[1749390769224,0.981,650.79,650.03,1.52510566]
[1749390769422,0.981,650.79,650.04,1.52510566]
[1749390769625,0.981,650.79,650.07,1.52510566]
[1749390769824,0.981,650.79,650.05,1.52510566]
[1749390770024,0.981,650.79,650.06,1.52510566]
[1749390770326,0.981,650.79,650.07,1.52510566]
[1749390770523,1.1405508,651.16,650.08,1.52510566]
[1749390770725,1.1405508,651.15,650.07,1.52510566]
[1749390770927,1.1405508,651.11,650.13,1.52510566]
[1749390771127,1.1405508,651.11,650.14,1.52510566]
[1749390771328,1.1405508,651.12,650.14,1.52510566]
[1749390771528,1.1405508,651.12,650.15,1.52510566]
[1749390771728,1.1405508,651.12,650.16,1.52510566]
[1749390772523,1.1405508,651.14,650.17,1.52510566]
[1749390773329,1.304,651.13,650.18,1.52510566]
[1749390773524,1.304,651.13,650.19,1.52510566]
[1749390773724,2.41204442,651.13,650.19,1.52510566]
[1749390774028,1.10978224,651.12,650.19,1.52510566]
[1749390774226,2.84236906,651.12,650.19,1.52510566]
[1749390774424,1.7323909,651.11,649.84,1.52510566]
[1749390774729,1.20402797,651.11,649.85,1.83286898]
[1749390775026,1.304,651.13,649.86,0.30775859]
[1749390775630,1.02631191,651.12,649.86,0.30775859]
[1749390775926,1.02631191,651.11,649.86,0.30775859]
[1749390776125,1.02631191,651.1,649.86,0.30775859]
[1749390776330,1.02631191,651.09,649.86,0.30775859]
[1749390776526,1.02631191,651.08,649.86,0.30775859]
[1749390776731,1.02631191,651.07,649.86,0.30775859]
[1749390776937,1.02631191,651.06,649.86,0.30775859]
[1749390777131,1.02631191,651.05,649.86,0.30775859]
[1749390777430,1.02631191,651.04,649.86,0.30775859]
[1749390777631,1.02631191,651.03,649.86,0.30775859]
[1749390777829,1.02631191,651.02,649.86,0.30775859]
[1749390778029,1.02631191,651.01,649.86,0.30775859]
[1749390778229,1.02631191,651.0,649.86,0.30775859]
[1749390778429,1.02631191,650.99,649.86,0.30775859]
[1749390778735,1.02631191,650.98,649.86,0.30775859]
[1749390778933,1.02631191,650.97,649.86,0.30775859]
[1749390779134,1.02631191,650.96,649.86,0.30775859]
[1749390779334,1.02631191,650.95,649.86,0.30775859]
[1749390779529,1.02631191,650.94,649.86,0.30775859]
[1749390779829,1.02631191,650.93,649.86,0.30775859]
[1749390780130,3.87719457,651.11,649.86,0.30775859]
[1749390780330,3.87719457,651.1,649.86,0.30775859]
[1749390780529,3.87734239,651.09,649.86,0.30775859]
[1749390780830,2.66903847,651.08,649.86,0.30775859]
[1749390781029,1.55599775,651.07,649.86,0.30775859]
[1749390781230,1.02631191,651.06,649.86,0.30775859]
[1749390781434,1.02631191,651.05,649.86,0.30775859]
[1749390781636,1.02631191,651.04,649.86,0.30775859]
[1749390781834,1.02631191,651.03,649.86,0.30775859]
[1749390782033,1.02631191,651.02,649.86,0.30775859]
[1749390782332,1.02631191,651.01,649.86,0.30775859]
[1749390782537,1.304,651.13,649.86,0.30775859]
[1749390782538,1.02631191,651.0,649.86,0.30775859]
[1749390782838,1.02631191,650.99,649.86,0.30775859]
[1749390783036,1.02631191,650.98,649.86,0.30775859]
[1749390783234,1.02631191,650.97,649.86,0.30775859]